{"text_format":"1","workbook":"xlsx","n_sheets":11,"sheets":["MENU","INSTRUÇÕES","DASHBOARD","CLIENTES","FORNECEDORES","ESTOQUE","ENTRADAS (COMPRAS)","SAÍDAS (VENDAS)","Impressão Relatório Entrada","Impressão Relatório Saída","Apoio"],"not_rendered":{"charts":3,"images":1,"macros":1,"external_links":0,"defined_names":10,"comments":0,"pivot_tables":0},"unopened":[],"bounds":{"document_bytes":16777216,"sheet_cells":100000,"rows_first":2000,"rows_last":500,"rows_between":2000,"halvings":0,"cell_chars":16384,"cell_head_chars":4096},"cells_cut":0,"cells_raw":0,"read":"whole","date_system":"1900"}

{"sheet":"MENU","index":0,"n_rows":12,"n_cols":36,"rows_kept":12,"cut":false,"hidden":false,"merged":[]}
[]
[]
[]
[]
[]
[]
[]
[]
[]
[]
[]
[null,null,null,null,null,null,null,null,null,null,null,null,null,null,null,null,null,null,null,null,null,null,null,null,null,null,null,null,null,null,null,null,null,null,null,"1234567-09"]

{"sheet":"INSTRUÇÕES","index":1,"n_rows":31,"n_cols":3,"rows_kept":31,"cut":false,"hidden":false,"merged":[[19,0,21,0],[19,1,21,17],[0,2,0,17],[2,0,3,0],[2,1,2,17],[3,1,3,17],[5,0,6,0],[5,1,6,17],[8,1,8,17],[10,0,12,0],[10,1,12,17],[14,0,17,0],[14,1,17,17],[23,0,25,0],[23,1,25,17],[27,0,28,0],[27,1,28,17],[30,1,30,17]]}
[null,null,"INSTRUÇÕES DE USO (LEIA ANTES DE UTILIZAR A PLANILHA)"]
[]
[1,"Antes de utilizar a planilha, é necessário habilitar as macros. Confira o passo a passo neste vídeo:"]
[null,"https://youtu.be/nOrhtwX-Oac"]
[]
[2,"O primeiro passo é cadastrar seus CLIENTES, FORNECEDORES e PRODUTOS acessando os respectivos formulários no menu inicial. Cada formulário possui um botão de INSTRUÇÕES para auxiliá-lo no preenchimento e uso dos rescursos."]
[]
[]
[3,"Para alterar as Unidades de Medida, acesse a guia Apoio e altere conforme a sua necessidade. Importante: Não deixe linhas em branco entre as unidades de medida, pois isto poderá gerar erros na planilha."]
[]
[4,"Após cadastrar seus produtos em estoque, será necessário registrar as Entradas de Estoque antes de realizar as Saídas."]
[]
[]
[]
[5,"Não faça alterações diretamente na planilha. Qualquer alteração (inserir, editar ou deletar) deve ser feita através dos formulários no menu inicial. \nObservação: Caso haja linhas em branco entre os cadastros no banco de dados, a planilha poderá retonar erros. Portanto, você deverá utilizar sempre os formulários da planilha."]
[]
[]
[]
[]
[6,"A Planilha é 100% editável e você poderá realizar qualquer alteração que desejar. Apenas é necessário conhecimentos nos recursos utilizados na criação da planilha como, por exemplo, fórmulas e programação VBA.\nImportante: Não realizamos ajustes em nossas planilhas e, neste caso, qualquer alteração é de responsabilidade do usuário da planilha."]
[]
[]
[]
[7,"Este modelo de Planilha foi desenvolvido e testado no Microsoft Excel para Windows. Não garantimos a compatibilidade com o Excel para MAC, Google Sheets, Excel para celular ou tablet ou qualquer outro software de Planilhas que não seja o Microsoft Excel para Windows.\t"]
[]
[]
[]
[8,"A Planilha de Estoque e Vendas é comercializada exclusivamente no site oficial do desenvolvedor. A compra deste modelo não lhe garante o direito de comercializá-la ou distribuí-la em outros sites. Qualquer violação de direitos autorais, será respondida judicialmente."]
[]
[]
[9,"Caso tenha alguma dúvida, basta nos contatar através do e-mail contato@exceleasy.com.br ou através do WhatsApp: +55 (19) 99735-8062\t\t\t\t\t\t\t\t\t\t\t\t\t\t\t\t\t\t\t\t"]

{"sheet":"DASHBOARD","index":2,"n_rows":35,"n_cols":11,"rows_kept":35,"cut":false,"hidden":false,"merged":[[3,9,5,10],[6,9,7,10],[11,9,14,10],[15,9,18,10],[9,7,9,10],[1,3,1,5],[1,8,1,10],[3,7,5,7],[3,8,5,8],[20,2,20,5],[20,7,20,10],[3,4,4,5],[3,2,4,3],[5,4,7,5],[5,2,7,3],[6,7,7,7],[6,8,7,8],[15,8,18,8],[15,7,18,7],[11,7,14,7],[11,8,14,8]]}
[{"$f":"MONTH(1&D2)","v":1},null,null,null,null,null,null,0]
[null,null,"Mês:","Janeiro",null,null,null,"Produto:"]
[]
[null,null,"ENTRADAS",null,"SAÍDAS",null,null,{"$f":"IFERROR(CONCATENATE(\"Entradas de \",I2,\" em: \",D2),\"\")","v":"Entradas de  em: Janeiro"},{"$f":"IFERROR(CONCATENATE(\"Saídas de: \",I2,\" em: \",D2),\"\")","v":"Saídas de:  em: Janeiro"},{"$f":"IFERROR(CONCATENATE(\"Lucro de: \",I2,\" em: \",D2),\"\")","v":"Lucro de:  em: Janeiro"}]
[]
[null,null,{"$f":"VLOOKUP(D2,C23:D34,2,0)","v":0},null,{"$f":"VLOOKUP(D2,C23:E34,3,0)","v":0}]
[null,null,null,null,null,null,null,{"$f":"IFERROR(SUMPRODUCT(((MONTH('ENTRADAS (COMPRAS)'!$B$3:$B$9999)=DASHBOARD!A1)*('ENTRADAS (COMPRAS)'!$D$3:$D$9999=$I$2)*('ENTRADAS (COMPRAS)'!$H$3:$H$9999))),\"\")","v":0},{"$f":"IFERROR(SUMPRODUCT(((MONTH('SAÍDAS (VENDAS)'!$B$3:$B$9997)=DASHBOARD!A1)*('SAÍDAS (VENDAS)'!$D$3:$D$9997=$I$2)*('SAÍDAS (VENDAS)'!$H$3:$H$9997))),\"\")","v":0},{"$f":"IFERROR((I7-H7),\"\")","v":0}]
[]
[]
[null,null,null,null,null,null,null,{"$f":"CONCATENATE(\"Movimentação de Estoque em: \",D2)","v":"Movimentação de Estoque em: Janeiro"}]
[]
[null,null,null,null,null,null,null,{"$f":"IFERROR(CONCATENATE(\"Qtd Entrada de: \",I2),\"\")","v":"Qtd Entrada de: "},{"$f":"CONCATENATE(\"Qtd Saída de: \",I2)","v":"Qtd Saída de: "},"Estoque Atual"]
[null,null,"Entrada",{"$f":"IF(A1=1,D23,IF(A1=2,D24,IF(A1=3,D25,IF(A1=4,D26,IF(A1=5,D27,IF(A1=6,D28,IF(A1=7,D29,IF(A1=8,D30,IF(A1=9,D31,IF(A1=10,D32,IF(A1=11,D33,IF(A1=12,D34,\"\"))))))))))))","v":0}]
[null,null,"Saída",{"$f":"IF(A1=1,E23,IF(A1=2,E24,IF(A1=3,E25,IF(A1=4,E26,IF(A1=5,E27,IF(A1=6,E28,IF(A1=7,E29,IF(A1=8,E30,IF(A1=9,E31,IF(A1=10,E32,IF(A1=11,E33,IF(A1=12,E34,\"\"))))))))))))","v":0}]
[null,null,"Lucro",{"$f":"D14-D13","v":0}]
[null,null,null,null,null,null,null,{"$f":"IFERROR(SUMPRODUCT(((MONTH('ENTRADAS (COMPRAS)'!$B$3:$B$9999)=DASHBOARD!A1)*('ENTRADAS (COMPRAS)'!$D$3:$D$9999=$I$2)*('ENTRADAS (COMPRAS)'!$F$3:$F$9999))),\"\")","v":0},{"$f":"IFERROR(SUMPRODUCT(((MONTH('SAÍDAS (VENDAS)'!$B$3:$B$9997)=DASHBOARD!A1)*('SAÍDAS (VENDAS)'!$D$3:$D$9997=$I$2)*('SAÍDAS (VENDAS)'!$F$3:$F$9997))),\"\")","v":0},{"$f":"IFERROR(VLOOKUP(I2,ESTOQUE!C3:E4997,3,FALSE)&\" \"&VLOOKUP(I2,ESTOQUE!C3:E4997,2,FALSE),\"-\")","v":"-"}]
[]
[]
[]
[]
[null,null,"Visão Geral (Entradas x Saídas x Lucro)",null,null,null,null,{"$f":"IFERROR(CONCATENATE(\"Entradas e Saídas de : \",I2),\"\")","v":"Entradas e Saídas de : "}]
[null,null,"Mês","Entradas","Saídas","Lucro",null,"Mês","Entrada","Saída","Lucro"]
[null,1,"Janeiro",{"$f":"SUMPRODUCT(((MONTH('ENTRADAS (COMPRAS)'!$B$3:$B$9999)=DASHBOARD!B23)*('ENTRADAS (COMPRAS)'!$H$3:$H$9999)))","v":0},{"$f":"SUMPRODUCT(((MONTH('SAÍDAS (VENDAS)'!$B$3:$B$9997)=DASHBOARD!B23)*('SAÍDAS (VENDAS)'!$H$3:$H$9997)))","v":0},{"$f":"E23-D23","v":0},1,"Janeiro",{"$f":"IFERROR(SUMPRODUCT(((MONTH('ENTRADAS (COMPRAS)'!$B$3:$B$9999)=DASHBOARD!G23)*('ENTRADAS (COMPRAS)'!$D$3:$D$9999=$I$2)*('ENTRADAS (COMPRAS)'!$H$3:$H$9999))),\"\")","v":0},{"$f":"IFERROR(SUMPRODUCT(((MONTH('SAÍDAS (VENDAS)'!$B$3:$B$9997)=DASHBOARD!G23)*('SAÍDAS (VENDAS)'!$D$3:$D$9997=$I$2)*('SAÍDAS (VENDAS)'!$H$3:$H$9997))),\"\")","v":0},{"$f":"IFERROR((J23-I23),\"\")","v":0}]
[null,2,"Fevereiro",{"$f":"SUMPRODUCT(((MONTH('ENTRADAS (COMPRAS)'!$B$3:$B$9999)=DASHBOARD!B24)*('ENTRADAS (COMPRAS)'!$H$3:$H$9999)))","v":0},{"$f":"SUMPRODUCT(((MONTH('SAÍDAS (VENDAS)'!$B$3:$B$9997)=DASHBOARD!B24)*('SAÍDAS (VENDAS)'!$H$3:$H$9997)))","v":0},{"$f":"E24-D24","v":0},2,"Fevereiro",{"$f":"IFERROR(SUMPRODUCT(((MONTH('ENTRADAS (COMPRAS)'!$B$3:$B$9999)=DASHBOARD!G24)*('ENTRADAS (COMPRAS)'!$D$3:$D$9999=$I$2)*('ENTRADAS (COMPRAS)'!$H$3:$H$9999))),\"\")","v":0},{"$f":"IFERROR(SUMPRODUCT(((MONTH('SAÍDAS (VENDAS)'!$B$3:$B$9997)=DASHBOARD!G24)*('SAÍDAS (VENDAS)'!$D$3:$D$9997=$I$2)*('SAÍDAS (VENDAS)'!$H$3:$H$9997))),\"\")","v":0},0]
[null,3,"Março",{"$f":"SUMPRODUCT(((MONTH('ENTRADAS (COMPRAS)'!$B$3:$B$9999)=DASHBOARD!B25)*('ENTRADAS (COMPRAS)'!$H$3:$H$9999)))","v":0},{"$f":"SUMPRODUCT(((MONTH('SAÍDAS (VENDAS)'!$B$3:$B$9997)=DASHBOARD!B25)*('SAÍDAS (VENDAS)'!$H$3:$H$9997)))","v":0},0,3,"Março",{"$f":"IFERROR(SUMPRODUCT(((MONTH('ENTRADAS (COMPRAS)'!$B$3:$B$9999)=DASHBOARD!G25)*('ENTRADAS (COMPRAS)'!$D$3:$D$9999=$I$2)*('ENTRADAS (COMPRAS)'!$H$3:$H$9999))),\"\")","v":0},{"$f":"IFERROR(SUMPRODUCT(((MONTH('SAÍDAS (VENDAS)'!$B$3:$B$9997)=DASHBOARD!G25)*('SAÍDAS (VENDAS)'!$D$3:$D$9997=$I$2)*('SAÍDAS (VENDAS)'!$H$3:$H$9997))),\"\")","v":0},0]
[null,4,"Abril",{"$f":"SUMPRODUCT(((MONTH('ENTRADAS (COMPRAS)'!$B$3:$B$9999)=DASHBOARD!B26)*('ENTRADAS (COMPRAS)'!$H$3:$H$9999)))","v":0},{"$f":"SUMPRODUCT(((MONTH('SAÍDAS (VENDAS)'!$B$3:$B$9997)=DASHBOARD!B26)*('SAÍDAS (VENDAS)'!$H$3:$H$9997)))","v":0},0,4,"Abril",{"$f":"IFERROR(SUMPRODUCT(((MONTH('ENTRADAS (COMPRAS)'!$B$3:$B$9999)=DASHBOARD!G26)*('ENTRADAS (COMPRAS)'!$D$3:$D$9999=$I$2)*('ENTRADAS (COMPRAS)'!$H$3:$H$9999))),\"\")","v":0},{"$f":"IFERROR(SUMPRODUCT(((MONTH('SAÍDAS (VENDAS)'!$B$3:$B$9997)=DASHBOARD!G26)*('SAÍDAS (VENDAS)'!$D$3:$D$9997=$I$2)*('SAÍDAS (VENDAS)'!$H$3:$H$9997))),\"\")","v":0},0]
[null,5,"Maio",{"$f":"SUMPRODUCT(((MONTH('ENTRADAS (COMPRAS)'!$B$3:$B$9999)=DASHBOARD!B27)*('ENTRADAS (COMPRAS)'!$H$3:$H$9999)))","v":0},{"$f":"SUMPRODUCT(((MONTH('SAÍDAS (VENDAS)'!$B$3:$B$9997)=DASHBOARD!B27)*('SAÍDAS (VENDAS)'!$H$3:$H$9997)))","v":0},0,5,"Maio",{"$f":"IFERROR(SUMPRODUCT(((MONTH('ENTRADAS (COMPRAS)'!$B$3:$B$9999)=DASHBOARD!G27)*('ENTRADAS (COMPRAS)'!$D$3:$D$9999=$I$2)*('ENTRADAS (COMPRAS)'!$H$3:$H$9999))),\"\")","v":0},{"$f":"IFERROR(SUMPRODUCT(((MONTH('SAÍDAS (VENDAS)'!$B$3:$B$9997)=DASHBOARD!G27)*('SAÍDAS (VENDAS)'!$D$3:$D$9997=$I$2)*('SAÍDAS (VENDAS)'!$H$3:$H$9997))),\"\")","v":0},0]
[null,6,"Junho",{"$f":"SUMPRODUCT(((MONTH('ENTRADAS (COMPRAS)'!$B$3:$B$9999)=DASHBOARD!B28)*('ENTRADAS (COMPRAS)'!$H$3:$H$9999)))","v":0},{"$f":"SUMPRODUCT(((MONTH('SAÍDAS (VENDAS)'!$B$3:$B$9997)=DASHBOARD!B28)*('SAÍDAS (VENDAS)'!$H$3:$H$9997)))","v":0},0,6,"Junho",{"$f":"IFERROR(SUMPRODUCT(((MONTH('ENTRADAS (COMPRAS)'!$B$3:$B$9999)=DASHBOARD!G28)*('ENTRADAS (COMPRAS)'!$D$3:$D$9999=$I$2)*('ENTRADAS (COMPRAS)'!$H$3:$H$9999))),\"\")","v":0},{"$f":"IFERROR(SUMPRODUCT(((MONTH('SAÍDAS (VENDAS)'!$B$3:$B$9997)=DASHBOARD!G28)*('SAÍDAS (VENDAS)'!$D$3:$D$9997=$I$2)*('SAÍDAS (VENDAS)'!$H$3:$H$9997))),\"\")","v":0},0]
[null,7,"Julho",{"$f":"SUMPRODUCT(((MONTH('ENTRADAS (COMPRAS)'!$B$3:$B$9999)=DASHBOARD!B29)*('ENTRADAS (COMPRAS)'!$H$3:$H$9999)))","v":0},{"$f":"SUMPRODUCT(((MONTH('SAÍDAS (VENDAS)'!$B$3:$B$9997)=DASHBOARD!B29)*('SAÍDAS (VENDAS)'!$H$3:$H$9997)))","v":0},0,7,"Julho",{"$f":"IFERROR(SUMPRODUCT(((MONTH('ENTRADAS (COMPRAS)'!$B$3:$B$9999)=DASHBOARD!G29)*('ENTRADAS (COMPRAS)'!$D$3:$D$9999=$I$2)*('ENTRADAS (COMPRAS)'!$H$3:$H$9999))),\"\")","v":0},{"$f":"IFERROR(SUMPRODUCT(((MONTH('SAÍDAS (VENDAS)'!$B$3:$B$9997)=DASHBOARD!G29)*('SAÍDAS (VENDAS)'!$D$3:$D$9997=$I$2)*('SAÍDAS (VENDAS)'!$H$3:$H$9997))),\"\")","v":0},0]
[null,8,"Agosto",{"$f":"SUMPRODUCT(((MONTH('ENTRADAS (COMPRAS)'!$B$3:$B$9999)=DASHBOARD!B30)*('ENTRADAS (COMPRAS)'!$H$3:$H$9999)))","v":0},{"$f":"SUMPRODUCT(((MONTH('SAÍDAS (VENDAS)'!$B$3:$B$9997)=DASHBOARD!B30)*('SAÍDAS (VENDAS)'!$H$3:$H$9997)))","v":0},0,8,"Agosto",{"$f":"IFERROR(SUMPRODUCT(((MONTH('ENTRADAS (COMPRAS)'!$B$3:$B$9999)=DASHBOARD!G30)*('ENTRADAS (COMPRAS)'!$D$3:$D$9999=$I$2)*('ENTRADAS (COMPRAS)'!$H$3:$H$9999))),\"\")","v":0},{"$f":"IFERROR(SUMPRODUCT(((MONTH('SAÍDAS (VENDAS)'!$B$3:$B$9997)=DASHBOARD!G30)*('SAÍDAS (VENDAS)'!$D$3:$D$9997=$I$2)*('SAÍDAS (VENDAS)'!$H$3:$H$9997))),\"\")","v":0},0]
[null,9,"Setembro",{"$f":"SUMPRODUCT(((MONTH('ENTRADAS (COMPRAS)'!$B$3:$B$9999)=DASHBOARD!B31)*('ENTRADAS (COMPRAS)'!$H$3:$H$9999)))","v":0},{"$f":"SUMPRODUCT(((MONTH('SAÍDAS (VENDAS)'!$B$3:$B$9997)=DASHBOARD!B31)*('SAÍDAS (VENDAS)'!$H$3:$H$9997)))","v":0},0,9,"Setembro",{"$f":"IFERROR(SUMPRODUCT(((MONTH('ENTRADAS (COMPRAS)'!$B$3:$B$9999)=DASHBOARD!G31)*('ENTRADAS (COMPRAS)'!$D$3:$D$9999=$I$2)*('ENTRADAS (COMPRAS)'!$H$3:$H$9999))),\"\")","v":0},{"$f":"IFERROR(SUMPRODUCT(((MONTH('SAÍDAS (VENDAS)'!$B$3:$B$9997)=DASHBOARD!G31)*('SAÍDAS (VENDAS)'!$D$3:$D$9997=$I$2)*('SAÍDAS (VENDAS)'!$H$3:$H$9997))),\"\")","v":0},0]
[null,10,"Outubro",{"$f":"SUMPRODUCT(((MONTH('ENTRADAS (COMPRAS)'!$B$3:$B$9999)=DASHBOARD!B32)*('ENTRADAS (COMPRAS)'!$H$3:$H$9999)))","v":0},{"$f":"SUMPRODUCT(((MONTH('SAÍDAS (VENDAS)'!$B$3:$B$9997)=DASHBOARD!B32)*('SAÍDAS (VENDAS)'!$H$3:$H$9997)))","v":0},0,10,"Outubro",{"$f":"IFERROR(SUMPRODUCT(((MONTH('ENTRADAS (COMPRAS)'!$B$3:$B$9999)=DASHBOARD!G32)*('ENTRADAS (COMPRAS)'!$D$3:$D$9999=$I$2)*('ENTRADAS (COMPRAS)'!$H$3:$H$9999))),\"\")","v":0},{"$f":"IFERROR(SUMPRODUCT(((MONTH('SAÍDAS (VENDAS)'!$B$3:$B$9997)=DASHBOARD!G32)*('SAÍDAS (VENDAS)'!$D$3:$D$9997=$I$2)*('SAÍDAS (VENDAS)'!$H$3:$H$9997))),\"\")","v":0},0]
[null,11,"Novembro",{"$f":"SUMPRODUCT(((MONTH('ENTRADAS (COMPRAS)'!$B$3:$B$9999)=DASHBOARD!B33)*('ENTRADAS (COMPRAS)'!$H$3:$H$9999)))","v":0},{"$f":"SUMPRODUCT(((MONTH('SAÍDAS (VENDAS)'!$B$3:$B$9997)=DASHBOARD!B33)*('SAÍDAS (VENDAS)'!$H$3:$H$9997)))","v":0},0,11,"Novembro",{"$f":"IFERROR(SUMPRODUCT(((MONTH('ENTRADAS (COMPRAS)'!$B$3:$B$9999)=DASHBOARD!G33)*('ENTRADAS (COMPRAS)'!$D$3:$D$9999=$I$2)*('ENTRADAS (COMPRAS)'!$H$3:$H$9999))),\"\")","v":0},{"$f":"IFERROR(SUMPRODUCT(((MONTH('SAÍDAS (VENDAS)'!$B$3:$B$9997)=DASHBOARD!G33)*('SAÍDAS (VENDAS)'!$D$3:$D$9997=$I$2)*('SAÍDAS (VENDAS)'!$H$3:$H$9997))),\"\")","v":0},0]
[null,12,"Dezembro",{"$f":"SUMPRODUCT(((MONTH('ENTRADAS (COMPRAS)'!$B$3:$B$9999)=DASHBOARD!B34)*('ENTRADAS (COMPRAS)'!$H$3:$H$9999)))","v":0},{"$f":"SUMPRODUCT(((MONTH('SAÍDAS (VENDAS)'!$B$3:$B$9997)=DASHBOARD!B34)*('SAÍDAS (VENDAS)'!$H$3:$H$9997)))","v":0},0,12,"Dezembro",{"$f":"IFERROR(SUMPRODUCT(((MONTH('ENTRADAS (COMPRAS)'!$B$3:$B$9999)=DASHBOARD!G34)*('ENTRADAS (COMPRAS)'!$D$3:$D$9999=$I$2)*('ENTRADAS (COMPRAS)'!$H$3:$H$9999))),\"\")","v":0},{"$f":"IFERROR(SUMPRODUCT(((MONTH('SAÍDAS (VENDAS)'!$B$3:$B$9997)=DASHBOARD!G34)*('SAÍDAS (VENDAS)'!$D$3:$D$9997=$I$2)*('SAÍDAS (VENDAS)'!$H$3:$H$9997))),\"\")","v":0},0]
[null,null,"Total Anual",{"$f":"SUM(D23:D34)","v":0},{"$f":"SUM(E23:E34)","v":0},{"$f":"SUM(F23:F34)","v":0},null,"Total Anual",{"$f":"SUM(I23:I34)","v":0},{"$f":"SUM(J23:J34)","v":0},{"$f":"SUM(K23:K34)","v":0}]

{"sheet":"CLIENTES","index":3,"n_rows":2,"n_cols":7,"rows_kept":2,"cut":false,"hidden":false,"merged":[]}
[0]
["ID","NOME","CPF/CNPJ","ENDEREÇO","TELEFONE","CELULAR/WHATSAPP","E-MAIL"]

{"sheet":"FORNECEDORES","index":4,"n_rows":2,"n_cols":7,"rows_kept":2,"cut":false,"hidden":false,"merged":[]}
[0]
["ID","RAZÃO SOCIAL","CNPJ","ENDEREÇO","TELEFONE","CELULAR / WHATSAPP","E-MAIL"]

{"sheet":"ESTOQUE","index":5,"n_rows":2,"n_cols":8,"rows_kept":2,"cut":false,"hidden":false,"merged":[]}
[0]
["ID","CÓDIGO","PRODUTO","UND MEDIDA","ESTOQUE ATUAL","ESTOQUE MÍNIMO","ÚLTIMO PREÇO COMPRA","PREÇO VENDA"]

{"sheet":"ENTRADAS (COMPRAS)","index":6,"n_rows":2,"n_cols":10,"rows_kept":2,"cut":false,"hidden":false,"merged":[]}
[0]
["ID","DATA COMPRA","CÓDIGO","PRODUTO","Unidade","QUANTIDADE","PREÇO UN","TOTAL","FORNECEDOR","CNPJ"]

{"sheet":"SAÍDAS (VENDAS)","index":7,"n_rows":2,"n_cols":10,"rows_kept":2,"cut":false,"hidden":false,"merged":[]}
[0]
["ID","DATA VENDA","CÓDIGO","PRODUTO","Unidade","QUANTIDADE","PREÇO UN","TOTAL","CLIENTE","CPF/CNPJ"]

{"sheet":"Impressão Relatório Entrada","index":8,"n_rows":2,"n_cols":10,"rows_kept":2,"cut":false,"hidden":false,"merged":[[0,1,0,9]]}
[null,"RELATÓRIO DE ENTRADAS DE ESTOQUE"]
["ID","DATA COMPRA","CÓDIGO","PRODUTO","Unidade","QUANTIDADE","PREÇO UN","TOTAL","FORNECEDOR","CNPJ"]

{"sheet":"Impressão Relatório Saída","index":9,"n_rows":2,"n_cols":10,"rows_kept":2,"cut":false,"hidden":false,"merged":[[0,1,0,9]]}
[null,"RELATÓRIO DE SAÍDAS DE ESTOQUE"]
["ID","DATA VENDA","CÓDIGO","PRODUTO","Unidade","QUANTIDADE","PREÇO UN","TOTAL","CLIENTE","CPF/CNPJ"]

{"sheet":"Apoio","index":10,"n_rows":13,"n_cols":3,"rows_kept":13,"cut":false,"hidden":false,"merged":[]}
["Und Medida",null,"Meses"]
["un",null,"Janeiro"]
["m",null,"Fevereiro"]
["m2",null,"Março"]
["m3",null,"Abril"]
["Kg",null,"Maio"]
[null,null,"Junho"]
[null,null,"Julho"]
[null,null,"Agosto"]
[null,null,"Setembro"]
[null,null,"Outubro"]
[null,null,"Novembro"]
[null,null,"Dezembro"]